fUSD/lending_fUSD_20240119
["ID","MTS","AMOUNT","RATE_DAILY","PERIOD"]
[312134695,1705666281778,-574.88821157,0.00023273,2]
[312134696,1705666281792,-500.0,0.00023273,2]
[312134697,1705666281803,-503.13118565,0.00023273,2]
[312134698,1705666281815,-468.29370821,0.00023273,2]
[312134699,1705666281828,-504.3102272,0.00023273,2]
[312134700,1705666281840,-500.0,0.00023273,2]
[312134701,1705666281853,-501.77492575,0.00023273,2]
[312134702,1705666281866,-500.0,0.00023273,2]
[312134703,1705666281878,-500.0,0.00023273,2]
[312134704,1705666281892,-500.0,0.00023273,2]
[312134705,1705666281903,-500.0,0.00023273,2]
[312134706,1705666281916,-265.94563468,0.00023273,2]
[312134707,1705666281927,-500.0,0.00023273,2]
[312134708,1705666281940,-291.56825754,0.00023273,2]
[312134709,1705666282151,-504.47969946,0.00023273,2]
[312134710,1705666282163,-500.0,0.00023273,2]
[312134711,1705666282174,-500.0,0.00023273,2]
[312134712,1705666282186,-500.0,0.00023273,2]
[312134713,1705666282197,-500.0,0.00023273,2]
[312134714,1705666282209,-510.76217623,0.00023273,2]
[312134715,1705666282220,-500.0,0.00023273,2]
[312134716,1705666282232,-500.0,0.00023273,2]
[312134717,1705666282244,-517.06175188,0.00023273,2]
[312134718,1705666282256,-502.06025861,0.00023273,2]
[312134719,1705666282269,-505.31007447,0.00023273,2]
[312134720,1705666282280,-495.24699742,0.00023273,2]
[312134721,1705666282293,-505.75341067,0.00023273,2]
[312134722,1705666282305,-500.0,0.00023273,2]
[312134723,1705666282316,-352.58919463,0.00023273,2]
[312134724,1705666282328,-304.00863719,0.00023273,2]
[312134725,1705666282339,-500.0,0.00023273,2]
[312134726,1705666282351,-506.51362654,0.00023273,2]
[312134727,1705666282364,-1003.28667463,0.00023273,2]
[312134728,1705666282376,-504.13785091,0.00023273,2]
[312134729,1705666282387,-500.0,0.00023273,2]
[312134730,1705666282400,-509.14704235,0.00023273,2]
[312134731,1705666282411,-500.0,0.00023273,2]
[312134732,1705666282422,-506.06401249,0.00023273,2]
[312134733,1705666282434,-500.0,0.00023273,2]
[312134734,1705666282446,-505.39575262,0.00023273,2]
[312134735,1705666282457,-560.91200428,0.00023273,2]
[312134736,1705666282469,-500.0,0.00023273,2]
[312134737,1705666282482,-500.0,0.00023273,2]
[312134738,1705666282493,-521.71911142,0.00023273,9]
[312134739,1705666282505,-500.0,0.00023273,2]
[312134740,1705666282517,-500.0,0.00023273,2]
[312134741,1705666282529,-500.0,0.00023273,2]
[312134742,1705666282541,-496.68561738,0.00023273,2]
[312134743,1705666282553,-500.0,0.00023273,2]
[312134744,1705666282565,-500.0,0.00023273,2]
[312134745,1705666282576,-254.96426251,0.00023273,2]
[312134746,1705666282588,-500.0,0.00023273,2]
[312134747,1705666282600,-500.0,0.00023273,2]
[312134748,1705666282612,-500.0,0.00023273,2]
[312134749,1705666282623,-1439.31,0.00023273,2]
[312134750,1705666282635,-1221.48,0.00023273,2]
[312134751,1705666282648,-501.964878,0.00023273,2]
[312134752,1705666282660,-502.8382007,0.00023273,2]
[312134753,1705666282671,-2355.38,0.00023273,2]
[312134754,1705666282683,-500.0,0.00023273,2]
[312134755,1705666282694,-1913.69,0.00023273,2]
[312134756,1705666282706,-500.0,0.00023273,2]
[312134757,1705666282718,-500.0,0.00023273,2]
[312134758,1705666282730,-500.0,0.00023273,2]
[312134759,1705666282742,-1389.84,0.00023273,2]
[312134760,1705666282756,-500.0,0.00023273,2]
[312134761,1705666282767,-500.0,0.00023273,2]
[312134762,1705666282779,-566.35,0.00023273,2]
[312134763,1705666282791,-500.0,0.00023273,2]
[312134764,1705666282806,-834.36,0.00023273,2]
[312134765,1705666282818,-899.48,0.00023273,2]
[312134766,1705666282830,-1018.63,0.00023273,2]
[312134767,1705666282842,-770.66,0.00023273,2]
[312134768,1705666282854,-602.31,0.00023273,2]
[312134769,1705666282865,-543.43,0.00023273,2]
[312134770,1705666282876,-1486.66,0.00023273,2]
[312134771,1705666282895,-1291.26,0.00023273,2]
[312134772,1705666282907,-946.18,0.00023273,2]
[312134773,1705666282920,-1374.09,0.00023273,2]
[312134774,1705666282932,-1903.0,0.00023273,2]
[312134775,1705666282944,-1394.03,0.00023273,2]
[312134776,1705666282956,-500.0,0.00023273,2]
[312134777,1705666282968,-1081.06,0.00023273,2]
[312134778,1705666282979,-613.64,0.00023273,2]
[312134779,1705666283072,-822.5,0.00023273,2]
[312134780,1705666283084,-988.14,0.00023273,2]
[312134781,1705666283096,-1134.32,0.00023273,2]
[312134782,1705666283108,-500.0,0.00023273,2]
[312134783,1705666283119,-1114.34,0.00023273,2]
[312134784,1705666283131,-500.0,0.00023273,2]
[312134785,1705666283143,-500.0,0.00023273,2]
[312134786,1705666283154,-1136.5,0.00023273,2]
[312134787,1705666283165,-657.2,0.00023273,2]
[312134788,1705666283176,-1517.72,0.00023273,2]
[312134789,1705666283189,-500.0,0.00023273,2]
[312134790,1705666283202,-1390.83,0.00023273,2]
[312134791,1705666283213,-500.0,0.00023273,2]
[312134792,1705666283225,-500.0,0.00023273,2]
[312134793,1705666283237,-624.44,0.00023273,2]
[312134794,1705666283249,-873.54,0.00023273,2]
[312134795,1705666283261,-500.0,0.00023273,2]
[312134796,1705666283273,-500.0,0.00023273,2]
[312134797,1705666283285,-1098.08,0.00023273,2]
[312134798,1705666283297,-1055.03,0.00023273,2]
[312134799,1705666283310,-1465.17,0.00023273,2]
[312134800,1705666283322,-1388.77,0.00023273,2]
[312134801,1705666283335,-500.0,0.00023273,2]
[312134802,1705666283347,-751.33,0.00023273,2]
[312134803,1705666283359,-847.66,0.00023273,2]
[312134804,1705666283370,-1716.75,0.00023273,2]
[312134805,1705666283383,-1266.25,0.00023273,2]
[312134806,1705666283395,-1506.4,0.00023273,2]
[312134807,1705666283407,-1094.94,0.00023273,2]
[312134808,1705666283419,-1831.72,0.00023273,2]
[312134809,1705666283431,-1727.3,0.00023273,2]
[312134810,1705666283443,-1056.89,0.00023273,2]
[312134811,1705666283454,-500.0,0.00023273,2]
[312134812,1705666283466,-935.85,0.00023273,2]
[312134813,1705666283478,-1066.08,0.00023273,2]
[312134814,1705666283490,-1553.56,0.00023273,2]
[312134815,1705666283502,-2466.3,0.00023273,2]
[312134816,1705666283514,-1630.52,0.00023273,2]
[312134817,1705666283525,-1692.09,0.00023273,2]
[312134818,1705666283537,-1389.04,0.00023273,2]
[312134819,1705666283548,-1366.17,0.00023273,2]
[312134820,1705666283560,-151.0,0.00023286,7]
[312134821,1705666283572,-151.0,0.00023286,7]
[312134822,1705666283583,-452.20610645,0.00023288,4]
[312134823,1705666283594,-500.0,0.00023288,4]
[312134824,1705666283606,-500.0,0.00023288,4]
[312134825,1705666283618,-500.0,0.00023288,4]
[312134826,1705666283631,-500.0,0.00023288,4]
[312134827,1705666283644,-262.5260245,0.00023288,4]
[312134828,1705666283656,-500.0,0.00023288,4]
[312134829,1705666283668,-500.0,0.00023288,4]
[312134830,1705666283680,-500.0,0.00023288,4]
[312134831,1705666283692,-276.92546265,0.00023288,4]
[312134832,1705666283704,-500.0,0.00023288,4]
[312134833,1705666283716,-500.0,0.00023288,4]
[312134834,1705666283728,-500.0,0.00023288,4]
[312134835,1705666283740,-444.99454361,0.00023288,4]
[312134836,1705666283752,-500.0,0.00023288,4]
[312134837,1705666283764,-500.0,0.00023288,4]
[312134838,1705666283777,-543.27549032,0.00023288,2]
[312134839,1705666283789,-500.0,0.00023288,2]
[312134840,1705666283801,-524.94397188,0.00023288,2]
[312134841,1705666283815,-543.27549032,0.00023288,2]
[312134842,1705666283827,-500.0,0.00023288,2]
[312134843,1705666283838,-543.27549032,0.00023288,2]
[312134844,1705666283849,-255.76156585,0.00023288,2]
[312134845,1705666283862,-543.27549032,0.00023288,2]
[312134846,1705666283874,-543.27549032,0.00023288,2]
[312134847,1705666283885,-543.27549032,0.00023288,2]
[312134848,1705666283898,-543.27549032,0.00023288,2]
[312134849,1705666284004,-543.27549032,0.00023288,2]
[312134850,1705666284016,-543.27549032,0.00023288,2]
[312134851,1705666284029,-543.27549032,0.00023288,2]
[312134852,1705666284040,-543.27549032,0.00023288,2]
[312134853,1705666284052,-543.27549032,0.00023288,2]
[312134854,1705666284064,-543.27549032,0.00023288,2]
[312134855,1705666284076,-543.27549032,0.00023288,2]
[312134856,1705666284088,-543.27549032,0.00023288,2]
[312134857,1705666284101,-543.27549032,0.00023288,2]
[312134858,1705666284113,-543.27549032,0.00023288,2]
[312134859,1705666284125,-209.97758874,0.00023288,2]
[312134860,1705666284137,-865.42832494,0.00023288,2]
[312134861,1705666284149,-865.42832494,0.00023288,2]
[312134862,1705666284160,-865.42832494,0.00023288,2]
[312134863,1705666284173,-865.42832494,0.00023288,2]
[312134864,1705666284185,-865.42832494,0.00023288,2]
[312134865,1705666284196,-865.42832494,0.00023288,2]
[312134866,1705666284209,-865.42832494,0.00023288,2]
[312134867,1705666284221,-865.42832494,0.00023288,2]
[312134868,1705666284233,-865.42832494,0.00023288,2]
[312134869,1705666284245,-865.42832494,0.00023288,2]
[312134870,1705666284257,-865.42832494,0.00023288,2]
[312134871,1705666284269,-865.42832494,0.00023288,2]
[312134872,1705666284280,-865.42832494,0.00023288,2]
[312134873,1705666284292,-865.42832494,0.00023288,2]
[312134874,1705666284304,-865.42832494,0.00023288,2]
[312134875,1705666284316,-865.42832494,0.00023288,2]
[312134876,1705666284328,-865.42832494,0.00023288,2]
[312134877,1705666284340,-865.42832494,0.00023288,2]
[312134878,1705666284352,-907.03545593,0.00023288,2]
[312134879,1705666284364,-907.03545593,0.00023288,2]
[312134880,1705666284377,-381.56435836,0.00023288,4]
[312134881,1705666284389,-500.0,0.00023288,2]
[312134882,1705666284625,-451.11827174,0.00023288,2]
[312134883,1705666284665,-467.17843692,0.00023288,2]
[312134884,1705666284677,-539.00311001,0.00023288,2]
[312134885,1705666284688,-515.00924383,0.00023288,2]
[312134886,1705666284699,-463.47395246,0.00023288,2]
[312134887,1705666284710,-204.75090369,0.00023288,2]
[312134888,1705666284722,-162.38918625,0.00023288,2]
[312134889,1705666284734,-454.68972147,0.00023288,2]
[312134890,1705666284745,-185.38958099,0.00023288,2]
[312134891,1705666284757,-5006.0,0.00023288,4]
[312134892,1705666284769,-432.05,0.00023296,2]
[312134893,1705666284780,-1253.32399225,0.00023309,2]
[312134894,1705666284791,-150.45,0.0002342,2]
[312134895,1705666284802,-432.05,0.00023469,2]
[312134896,1705666284814,-154.86226234,0.000235,2]
[312134897,1705666284828,-2164.702777,0.000235,2]
[312134898,1705666284838,-12068.94,0.00023527,2]
[312134899,1705666284849,-1901.08,0.00023527,2]
[312134900,1705666284862,-975.74,0.00023527,2]
[312134901,1705666284873,-2659.65,0.00023527,2]
[312134902,1705666284884,-500.0,0.00023527,2]
[312134903,1705666284896,-564.95,0.00023527,2]
[312134904,1705666284910,-500.0,0.00023527,2]
[312134905,1705666284922,-1625.11,0.00023527,2]
[312134906,1705666284934,-1446.64,0.00023527,2]
[312134907,1705666284945,-2115.14,0.00023527,2]
[312134908,1705666284957,-1533.66,0.00023527,2]
[312134909,1705666284968,-194.88,0.00023527,2]
[312134910,1705666284979,-5142.49,0.00023527,2]
[312134911,1705666284991,-18985.1,0.00023527,2]
[312134912,1705666285002,-689.2,0.00023527,2]
[312134913,1705666285013,-2678.36,0.00023527,2]
[312134914,1705666285024,-1927.81,0.00023527,2]
[312134915,1705666285035,-3236.89,0.00023527,2]
[312134916,1705666285046,-2323.62,0.00023527,2]
[312134917,1705666285057,-3099.95,0.00023527,2]
[312134918,1705666285068,-1604.1,0.00023527,2]
[312134919,1705666285081,-3224.28,0.00023527,2]
[312134920,1705666285092,-626.86,0.00023527,2]
[312134921,1705666285105,-783.31,0.00023527,2]
[312134922,1705666285115,-3676.75,0.00023527,2]
[312134923,1705666285127,-838.41,0.00023527,2]
[312134924,1705666285139,-1875.81,0.00023527,2]
[312134925,1705666285151,-819.65,0.00023527,2]
[312134926,1705666285162,-993.83,0.00023527,2]
[312134927,1705666285173,-1210.28,0.00023527,2]
[312134928,1705666285185,-500.0,0.00023527,2]
[312134929,1705666285196,-3394.92,0.00023542,2]
[312134930,1705666285207,-2245.7,0.00023542,2]
[312134931,1705666285219,-2640.33,0.00023542,5]
[312134932,1705666285231,-1564.92,0.00023542,2]
[312134933,1705666285242,-1643.94,0.00023542,2]
[312134934,1705666285254,-15598.58,0.00023542,2]
[312134935,1705666285265,-19754.48,0.00023542,2]
[312134936,1705666285276,-11426.74,0.00023542,2]
[312134937,1705666285288,-1205.31,0.00023542,2]
[312134938,1705666285299,-500.0,0.00023542,2]
[312134939,1705666285310,-5092.13,0.00023542,2]
[312134940,1705666285322,-2505.92,0.00023542,2]
[312134941,1705666285333,-2542.57,0.00023542,2]
[312134942,1705666285344,-1214.32,0.00023542,2]
[312134943,1705666285356,-2516.11,0.00023542,2]
[312134944,1705666285368,-5945.8,0.00023542,2]
[312134945,1705666285379,-47078.31,0.00023542,2]
[312134946,1705666285390,-753.07,0.00023542,2]
[312134947,1705666285401,-3287.55,0.00023542,2]
[312134948,1705666285413,-2887.71,0.00023542,2]
[312134949,1705666285424,-1180.41,0.00023542,2]
[312134950,1705666285435,-1115.89,0.00023542,2]
[312134951,1705666285446,-4394.09,0.00023542,2]
[312134952,1705666285458,-500.0,0.00023542,2]
[312134953,1705666285469,-1102.23,0.00023542,2]
[312134954,1705666285480,-1589.65,0.00023542,2]
[312134955,1705666285492,-34180.49,0.00023542,2]
[312134956,1705666285514,-2952.43,0.00023542,2]
[312134957,1705666285529,-892.05,0.00023542,2]
[312134958,1705666285540,-150.0,0.00023542,2]
[312134959,1705666285552,-150.0,0.00023542,2]
[312134960,1705666285564,-2360.62,0.00023542,2]
[312134961,1705666285575,-2662.92,0.00023542,2]
[312134962,1705666285587,-4108.99,0.00023542,2]
[312134963,1705666285599,-500.0,0.00023543,2]
[312134964,1705666285611,-500.0,0.00023543,2]
[312134965,1705666285622,-500.0,0.00023543,2]
[312134966,1705666285634,-500.0,0.00023543,2]
[312134967,1705666285646,-500.0,0.00023543,2]
[312134968,1705666285657,-500.0,0.00023543,2]
[312134969,1705666285670,-500.0,0.00023543,2]
[312134970,1705666285681,-500.0,0.00023543,2]
[312134971,1705666285694,-500.0,0.00023543,2]
[312134972,1705666285705,-505.16866843,0.00023543,2]
[312134973,1705666285717,-500.0,0.00023543,2]
[312134974,1705666285730,-500.0,0.00023543,2]
[312134975,1705666285742,-510.62840287,0.00023543,2]
[312134976,1705666285754,-515.57466375,0.00023543,2]
[312134977,1705666285766,-502.27619824,0.00023543,2]
[312134978,1705666285778,-500.0,0.00023543,2]
[312134979,1705666285790,-500.0,0.00023543,2]
[312134980,1705666285802,-500.0,0.00023543,2]
[312134981,1705666285814,-558.50262234,0.00023543,2]
[312134982,1705666285826,-598.8,0.00023543,2]
[312134983,1705666285838,-500.0,0.00023543,2]
[312134984,1705666285852,-397.74440379,0.00023543,2]
[312134985,1705666285864,-543.5,0.00023543,2]
[312134986,1705666285876,-500.0,0.00023543,2]
[312134987,1705666285888,-500.0,0.00023543,2]
[312134988,1705666285901,-500.0,0.00023543,2]
[312134989,1705666285913,-500.0,0.00023543,2]
[312134990,1705666285924,-628.05,0.00023543,2]
[312134991,1705666285936,-500.0,0.00023543,2]
[312134992,1705666285947,-515.52410153,0.00023543,2]
[312134993,1705666285958,-960.21,0.00023543,2]
[312134994,1705666285970,-1176.38,0.00023543,2]
[312134995,1705666285981,-500.0,0.00023543,2]
[312134996,1705666285992,-500.0,0.00023543,2]
[312134997,1705666286003,-577.3,0.00023543,2]
[312134998,1705666286015,-500.0,0.00023543,2]
[312134999,1705666286026,-500.0,0.00023543,2]
[312135000,1705666286038,-589.13,0.00023543,2]
[312135001,1705666286050,-907.94,0.00023543,2]
[312135002,1705666286062,-915.25,0.00023543,2]
[312135003,1705666286074,-953.2,0.00023543,2]
[312135004,1705666286086,-554.43,0.00023543,2]
[312135005,1705666286098,-500.0,0.00023543,2]
[312135006,1705666286112,-500.0,0.00023543,2]
[312135007,1705666286123,-592.33,0.00023543,2]
[312135008,1705666286136,-865.14,0.00023543,2]
[312135009,1705666286147,-500.0,0.00023543,2]
[312135010,1705666286159,-510.38643586,0.00023543,2]
[312135011,1705666286170,-500.0,0.00023543,2]
[312135012,1705666286182,-694.6,0.00023543,2]
[312135013,1705666286193,-500.0,0.00023543,2]
[312135014,1705666286205,-500.0,0.00023543,2]
[312135015,1705666286217,-699.21,0.00023543,2]
[312135016,1705666286228,-634.28,0.00023543,2]
[312135017,1705666286241,-500.0,0.00023543,2]
[312135018,1705666286254,-500.0,0.00023543,2]
[312135019,1705666286265,-1018.36,0.00023543,2]
[312135020,1705666286277,-988.95,0.00023543,2]
[312135021,1705666286290,-700.19,0.00023543,2]
[312135022,1705666286302,-500.0,0.00023543,2]
[312135023,1705666286313,-500.0,0.00023543,2]
[312135024,1705666286325,-500.0,0.00023543,2]
[312135025,1705666286338,-727.89,0.00023543,2]
[312135026,1705666286349,-500.0,0.00023543,2]
[312135027,1705666286360,-1090.17,0.00023543,2]
[312135028,1705666286372,-500.0,0.00023543,2]
[312135029,1705666286383,-500.0,0.00023543,2]
[312135030,1705666286394,-500.0,0.00023543,2]
[312135031,1705666286406,-1289.78,0.00023543,2]
[312135032,1705666286417,-500.0,0.00023543,2]
[312135033,1705666286428,-500.0,0.00023543,2]
[312135034,1705666286441,-1120.95,0.00023543,2]
[312135035,1705666286453,-1300.86,0.00023543,2]
[312135036,1705666286464,-500.0,0.00023543,2]
[312135037,1705666286475,-698.1,0.00023543,2]
[312135038,1705666286487,-511.37820531,0.00023543,2]
[312135039,1705666286499,-906.66,0.00023543,2]
[312135040,1705666286510,-500.0,0.00023543,2]
[312135041,1705666286521,-919.21,0.00023543,2]
[312135042,1705666286532,-500.0,0.00023543,2]
[312135043,1705666286544,-500.0,0.00023543,2]
[312135044,1705666286556,-545.64,0.00023543,2]
[312135045,1705666286568,-500.0,0.00023543,2]
[312135046,1705666286579,-500.0,0.00023543,2]
[312135047,1705666286590,-506.43108136,0.00023543,2]
[312135048,1705666286602,-1384.85,0.00023543,2]
[312135049,1705666286614,-500.0,0.00023543,2]
[312135050,1705666286628,-500.0,0.00023543,2]
[312135051,1705666286640,-977.33,0.00023543,2]
[312135052,1705666286652,-500.0,0.00023543,2]
[312135053,1705666286663,-556.82974767,0.00023543,2]
[312135054,1705666286675,-500.0,0.00023543,2]
[312135055,1705666286686,-1000.0,0.00023543,2]
[312135056,1705666286697,-1012.68,0.00023543,2]
[312135057,1705666286709,-511.88266638,0.00023543,2]
[312135058,1705666286721,-500.0,0.00023543,2]
[312135059,1705666286732,-500.0,0.00023543,2]
[312135060,1705666286746,-1136.47,0.00023543,2]
[312135061,1705666286757,-500.0,0.00023543,2]
[312135062,1705666286768,-785.17,0.00023543,2]
[312135063,1705666286779,-500.0,0.00023543,2]
[312135064,1705666286791,-500.0,0.00023543,2]
[312135065,1705666286802,-500.0,0.00023543,2]
[312135066,1705666286814,-500.0,0.00023543,2]
[312135067,1705666286829,-648.64,0.00023543,2]
[312135068,1705666286841,-500.0,0.00023543,2]
[312135069,1705666286853,-1005.41,0.00023543,2]
[312135070,1705666286865,-507.46545509,0.00023543,2]
[312135071,1705666286877,-500.0,0.00023543,2]
[312135072,1705666286889,-500.0,0.00023543,2]
[312135073,1705666286901,-730.87,0.00023543,2]
[312135074,1705666286913,-756.0,0.00023543,2]
[312135075,1705666286924,-709.1,0.00023543,2]
[312135076,1705666286936,-681.37,0.00023543,2]
[312135077,1705666286949,-500.0,0.00023543,2]
[312135078,1705666286960,-500.0,0.00023543,2]
[312135079,1705666286972,-634.39091061,0.00023543,2]
[312135080,1705666286984,-500.0,0.00023543,2]
[312135081,1705666286996,-626.37,0.00023543,2]
[312135082,1705666287007,-500.0,0.00023543,2]
[312135083,1705666287019,-534.94626464,0.00023543,2]
[312135084,1705666287036,-500.0,0.00023543,2]
[312135085,1705666287048,-500.0,0.00023543,2]
[312135086,1705666287060,-500.0,0.00023543,2]
[312135087,1705666287072,-500.0,0.00023543,2]
[312135088,1705666287084,-500.0,0.00023543,2]
[312135089,1705666287096,-500.0,0.00023543,2]
[312135090,1705666287107,-926.69,0.00023543,2]
[312135091,1705666287120,-617.42,0.00023543,2]
[312135092,1705666287131,-500.0,0.00023543,2]
[312135093,1705666287146,-618.52,0.00023543,2]
[312135094,1705666287158,-500.0,0.00023543,2]
[312135095,1705666287169,-500.0,0.00023543,2]
[312135096,1705666287181,-500.0,0.00023543,2]
[312135097,1705666287192,-500.0,0.00023543,2]
[312135098,1705666287205,-530.48,0.00023543,2]
[312135099,1705666287218,-500.0,0.00023543,7]
[312135100,1705666287230,-500.0,0.00023543,2]
[312135101,1705666287242,-500.0,0.00023543,2]
[312135102,1705666287254,-500.0,0.00023543,2]
[312135103,1705666287266,-500.0,0.00023543,2]
[312135104,1705666287278,-500.0,0.00023543,2]
[312135105,1705666287290,-596.7,0.00023543,2]
[312135106,1705666287302,-593.83540654,0.00023543,2]
[312135107,1705666287314,-869.05,0.00023543,2]
[312135108,1705666287326,-651.28,0.00023543,2]
[312135109,1705666287338,-513.35484274,0.00023543,2]
[312135110,1705666287351,-813.98,0.00023543,2]
[312135111,1705666287363,-858.03,0.00023543,2]
[312135112,1705666287375,-1255.83,0.00023543,2]
[312135113,1705666287386,-500.0,0.00023543,2]
[312135114,1705666287398,-500.0,0.00023543,2]
[312135115,1705666287410,-501.5060058,0.00023543,2]
[312135116,1705666287422,-500.0,0.00023543,2]
[312135117,1705666287434,-500.0,0.00023543,2]
[312135118,1705666287446,-500.0,0.00023543,2]
[312135119,1705666287459,-1127.81,0.00023543,2]
[312135120,1705666287471,-737.1,0.00023543,2]
[312135121,1705666287483,-500.0,0.00023543,2]
[312135122,1705666287495,-933.45,0.00023543,2]
[312135123,1705666287506,-500.0,0.00023543,2]
[312135124,1705666287518,-1285.45,0.00023543,2]
[312135125,1705666287530,-799.51,0.00023543,2]
[312135126,1705666287541,-500.0,0.00023543,2]
[312135127,1705666287554,-500.0,0.00023543,2]
[312135128,1705666287565,-1604.6,0.00023543,2]
[312135129,1705666287577,-500.0,0.00023543,2]
[312135130,1705666287590,-565.02,0.00023543,2]
[312135131,1705666287601,-500.0,0.00023543,2]
[312135132,1705666287612,-500.0,0.00023543,2]
[312135133,1705666287623,-500.0,0.00023543,2]
[312135134,1705666287634,-500.0,0.00023543,2]
[312135135,1705666287646,-500.0,0.00023543,2]
[312135136,1705666287659,-520.46,0.00023543,2]
[312135137,1705666287671,-500.0,0.00023543,2]
[312135138,1705666287683,-174.13136025,0.00023543,2]
[312135139,1705666287695,-500.0,0.00023543,2]
[312135140,1705666287706,-728.86,0.00023543,2]
[312135141,1705666287719,-1264.15,0.00023543,2]
[312135142,1705666287731,-354.28246825,0.00023543,2]
[312135143,1705666287742,-500.0,0.00023543,2]
[312135144,1705666287754,-649.55,0.00023543,2]
[312135145,1705666287766,-500.0,0.00023543,2]
[312135146,1705666287777,-511.23,0.00023543,2]
[312135147,1705666287790,-500.0,0.00023543,2]
[312135148,1705666287803,-977.19,0.00023543,2]
[312135149,1705666287821,-500.0,0.00023543,2]
[312135150,1705666287840,-1528.44,0.00023543,2]
[312135151,1705666287852,-500.0,0.00023543,2]
[312135152,1705666287864,-500.0,0.00023543,2]
[312135153,1705666287876,-500.0,0.00023543,2]
[312135154,1705666287887,-552.40539177,0.00023543,2]
[312135155,1705666287900,-1679.82,0.00023543,2]
[312135156,1705666287913,-500.0,0.00023543,2]
[312135157,1705666287925,-506.54686713,0.00023543,2]
[312135158,1705666287937,-627.3,0.00023543,2]
[312135159,1705666287949,-500.0,0.00023543,2]
[312135160,1705666287961,-500.0,0.00023543,2]
[312135161,1705666287973,-500.0,0.00023543,2]
[312135162,1705666287985,-500.0,0.00023543,2]
[312135163,1705666287998,-500.0,0.00023543,2]
[312135164,1705666288010,-1835.52,0.00023543,2]
[312135165,1705666288022,-9652.13,0.00023543,2]
[312135166,1705666288034,-515.26,0.00023543,2]
[312135167,1705666288047,-500.0,0.00023543,2]
[312135168,1705666288059,-500.0,0.00023543,2]
[312135169,1705666288070,-500.0,0.00023543,2]
[312135170,1705666288083,-500.0,0.00023543,2]
[312135171,1705666288095,-500.0,0.00023543,2]
[312135172,1705666288108,-1150.41,0.00023543,2]
[312135173,1705666288119,-4685.36,0.00023543,2]
[312135174,1705666288131,-500.0,0.00023543,2]
[312135175,1705666288143,-500.0,0.00023543,2]
[312135176,1705666288156,-500.0,0.00023543,2]
[312135177,1705666288167,-500.0,0.00023543,2]
[312135178,1705666288180,-1244.76,0.00023543,2]
[312135179,1705666288192,-836.26,0.00023543,2]
[312135180,1705666288204,-2001.17,0.00023543,2]
[312135181,1705666288216,-643.71,0.00023543,2]
[312135182,1705666288228,-500.0,0.00023543,2]
[312135183,1705666288239,-580.73,0.00023543,2]
[312135184,1705666288250,-500.0,0.00023543,2]
[312135185,1705666288262,-500.0,0.00023543,2]
[312135186,1705666288274,-205.41636714,0.00023543,2]
[312135187,1705666288286,-500.0,0.00023543,2]
[312135188,1705666288298,-500.0,0.00023543,2]
[312135189,1705666288309,-507.7688145,0.00023543,2]
[312135190,1705666288321,-500.0,0.00023543,2]
[312135191,1705666288332,-673.35,0.00023543,2]
[312135192,1705666288343,-507.34492499,0.00023543,2]
[312135193,1705666288355,-500.0,0.00023543,2]
[312135194,1705666288368,-504.87,0.00023543,2]